lending/lending_fUSD_20240128
["ID","MTS","AMOUNT","RATE_DAILY","PERIOD"]
[312935466,1706470267871,-734.77,0.00052328,2]
[312935467,1706470267881,-500.0,0.00052328,31]
[312935468,1706470267890,-500.0,0.00052328,31]
[312935469,1706470267900,-500.0,0.00052328,31]
[312935470,1706470267909,-500.0,0.00052328,31]
[312935471,1706470267919,-500.0,0.00052328,31]
[312935472,1706470267928,-500.0,0.00052328,31]
[312935473,1706470267937,-500.0,0.00052328,31]
[312935474,1706470267947,-500.0,0.00052328,31]
[312935475,1706470267956,-500.0,0.00052328,31]
[312935476,1706470267965,-500.0,0.00052328,31]
[312935477,1706470267974,-500.0,0.00052328,31]
[312935478,1706470267984,-500.0,0.00052328,31]
[312935479,1706470267994,-500.0,0.00052328,31]
[312935480,1706470268005,-500.0,0.00052328,31]
[312935481,1706470268015,-500.0,0.00052328,31]
[312935482,1706470268025,-1012.49,0.00052328,7]
[312935483,1706470268034,-500.0,0.00052328,31]
[312935484,1706470268044,-600.0,0.00052328,120]
[312935485,1706470268054,-500.0,0.00052328,31]
[312935486,1706470268063,-500.0,0.00052328,31]
[312935487,1706470268073,-500.0,0.00052328,31]
[312935488,1706470268083,-500.0,0.00052328,31]
[312935489,1706470268093,-500.0,0.00052328,31]
[312935490,1706470268102,-500.0,0.00052328,31]
[312935491,1706470268113,-310.43879736,0.00052328,31]
[312935492,1706470268122,-500.0,0.00052328,31]
[312935493,1706470268131,-500.0,0.00052328,31]
[312935494,1706470268140,-500.0,0.00052328,31]
[312935495,1706470268149,-500.0,0.00052328,31]
[312935496,1706470268158,-500.0,0.00052328,31]
[312935497,1706470268168,-1000.0,0.00052328,2]
[312935498,1706470268177,-500.0,0.00052328,31]
[312935499,1706470268186,-500.0,0.00052328,31]
[312935500,1706470268195,-500.0,0.00052328,31]
[312935501,1706470268204,-500.0,0.00052328,31]
[312935502,1706470268214,-524.66,0.00052328,31]
[312935503,1706470268223,-942.54,0.00052328,31]
[312935504,1706470268232,-500.0,0.00052328,31]
[312935505,1706470268241,-500.0,0.00052328,31]
[312935506,1706470268250,-500.0,0.00052328,31]
[312935507,1706470268261,-500.0,0.00052328,31]
[312935508,1706470268270,-500.0,0.00052328,31]
[312935509,1706470268279,-500.0,0.00052328,31]
[312935510,1706470268289,-500.0,0.00052328,31]
[312935511,1706470268298,-500.0,0.00052328,31]
[312935512,1706470268307,-500.0,0.00052328,31]
[312935513,1706470268316,-500.0,0.00052328,31]
[312935514,1706470268326,-500.0,0.00052328,31]
[312935515,1706470268335,-194.25532158,0.00052328,31]
[312935516,1706470268344,-500.0,0.00052328,31]
[312935517,1706470268354,-500.0,0.00052328,31]
[312935518,1706470268365,-500.0,0.00052328,31]
[312935519,1706470268374,-500.0,0.00052328,31]
[312935520,1706470268383,-513.19,0.00052328,31]
[312935521,1706470268393,-500.0,0.00052328,31]
[312935522,1706470268403,-797.06,0.00052328,2]
[312935523,1706470268412,-437.78440959,0.00052328,31]
[312935524,1706470268421,-1179.11,0.00052328,7]
[312935525,1706470268432,-500.0,0.00052328,31]
[312935526,1706470268441,-500.0,0.00052328,31]
[312935527,1706470268450,-500.0,0.00052328,31]
[312935528,1706470268460,-500.0,0.00052328,31]
[312935529,1706470268469,-500.0,0.00052328,31]
[312935530,1706470268478,-500.0,0.00052328,14]
[312935531,1706470268488,-500.0,0.00052328,31]
[312935532,1706470268497,-500.0,0.00052328,31]
[312935533,1706470268506,-506.17,0.00052328,31]
[312935534,1706470268517,-500.0,0.00052328,31]
[312935535,1706470268526,-537.17,0.00052328,31]
[312935536,1706470268539,-546.99,0.00052328,31]
[312935537,1706470268548,-500.0,0.00052328,31]
[312935538,1706470268557,-500.0,0.00052328,31]
[312935539,1706470268566,-335.22437722,0.00052328,31]
[312935540,1706470268575,-500.0,0.00052328,31]
[312935541,1706470268585,-500.0,0.00052328,31]
[312935542,1706470268594,-500.0,0.00052328,31]
[312935543,1706470268603,-500.0,0.00052328,31]
[312935544,1706470268615,-500.0,0.00052328,31]
[312935545,1706470268624,-500.0,0.00052328,31]
[312935546,1706470268634,-500.0,0.00052328,31]
[312935547,1706470268644,-500.0,0.00052328,31]
[312935548,1706470268653,-500.0,0.00052328,31]
[312935549,1706470268662,-500.0,0.00052328,31]
[312935550,1706470268671,-500.0,0.00052328,31]
[312935551,1706470268681,-500.0,0.00052328,31]
[312935552,1706470268691,-500.0,0.00052328,31]
[312935553,1706470268700,-500.0,0.00052328,31]
[312935554,1706470268710,-194.7588849,0.00052328,31]
[312935555,1706470268720,-500.0,0.00052328,31]
[312935556,1706470268729,-500.0,0.00052328,31]
[312935557,1706470268739,-500.02,0.00052328,31]
[312935558,1706470268748,-500.0,0.00052328,31]
[312935559,1706470268758,-500.0,0.00052328,31]
[312935560,1706470268767,-500.0,0.00052328,31]
[312935561,1706470268776,-500.0,0.00052328,31]
[312935562,1706470268785,-500.0,0.00052328,31]
[312935563,1706470268795,-500.0,0.00052328,31]
[312935564,1706470268805,-500.0,0.00052328,31]
[312935565,1706470268816,-500.0,0.00052328,31]
[312935566,1706470268825,-500.0,0.00052328,31]
[312935567,1706470268836,-500.0,0.00052328,31]
[312935568,1706470268845,-1000.0,0.00052328,31]
[312935569,1706470268854,-500.0,0.00052328,31]
[312935570,1706470268868,-1086.47,0.00052328,31]
[312935571,1706470268878,-500.0,0.00052328,31]
[312935572,1706470268887,-500.0,0.00052328,31]
[312935573,1706470268897,-500.0,0.00052328,31]
[312935574,1706470268906,-500.0,0.00052328,31]
[312935575,1706470268916,-500.0,0.00052328,31]
[312935576,1706470268926,-500.0,0.00052328,31]
[312935577,1706470268935,-500.0,0.00052328,31]
[312935578,1706470268945,-500.0,0.00052328,31]
[312935579,1706470268955,-500.0,0.00052328,31]
[312935580,1706470268964,-500.0,0.00052328,31]
[312935581,1706470268974,-500.0,0.00052328,31]
[312935582,1706470268983,-500.0,0.00052328,31]
[312935583,1706470268993,-500.0,0.00052328,31]
[312935584,1706470269005,-500.0,0.00052328,31]
[312935585,1706470269014,-500.0,0.00052328,31]
[312935586,1706470269023,-500.0,0.00052328,31]
[312935587,1706470269032,-500.0,0.00052328,31]
[312935588,1706470269043,-500.0,0.00052328,31]
[312935589,1706470269052,-500.0,0.00052328,31]
[312935590,1706470269062,-150.0,0.00052328,31]
[312935591,1706470269072,-500.0,0.00052328,31]
[312935592,1706470269082,-500.0,0.00052328,31]
[312935593,1706470269093,-500.0,0.00052328,31]
[312935594,1706470269102,-500.0,0.00052328,31]
[312935595,1706470269111,-500.0,0.00052328,31]
[312935596,1706470269121,-500.0,0.00052328,31]
[312935597,1706470269130,-500.0,0.00052328,31]
[312935598,1706470269139,-500.0,0.00052328,31]
[312935599,1706470269148,-500.0,0.00052328,31]
[312935600,1706470269157,-500.0,0.00052328,31]
[312935601,1706470269166,-500.0,0.00052328,31]
[312935602,1706470269175,-1000.0,0.00052328,7]
[312935603,1706470269184,-500.0,0.00052328,31]
[312935604,1706470269194,-500.0,0.00052328,31]
[312935605,1706470269203,-500.0,0.00052328,31]
[312935606,1706470269213,-500.0,0.00052328,31]
[312935607,1706470269222,-500.0,0.00052328,31]
[312935608,1706470269231,-500.0,0.00052328,31]
[312935609,1706470269240,-500.0,0.00052328,31]
[312935610,1706470269250,-500.0,0.00052328,31]
[312935611,1706470269259,-370.09882163,0.00052328,31]
[312935612,1706470269268,-500.0,0.00052328,31]
[312935613,1706470269277,-500.0,0.00052328,31]
[312935614,1706470269287,-500.0,0.00052328,31]
[312935615,1706470269297,-500.0,0.00052328,30]
[312935616,1706470269306,-500.0,0.00052328,31]
[312935617,1706470269315,-500.0,0.00052328,31]
[312935618,1706470269324,-500.0,0.00052328,31]
[312935619,1706470269334,-500.0,0.00052328,31]
[312935620,1706470269343,-500.0,0.00052328,31]
[312935621,1706470269461,-443.52026142,0.00052328,31]
[312935622,1706470269483,-500.0,0.00052328,31]
[312935623,1706470269493,-500.0,0.00052328,31]
[312935624,1706470269502,-500.0,0.00052328,31]
[312935625,1706470269512,-500.0,0.00052328,31]
[312935626,1706470269522,-500.0,0.00052328,31]
[312935627,1706470269531,-500.0,0.00052328,31]
[312935628,1706470269541,-500.0,0.00052328,31]
[312935629,1706470269551,-500.0,0.00052328,31]
[312935630,1706470269560,-958.05,0.00052328,31]
[312935631,1706470269570,-500.0,0.00052328,31]
[312935632,1706470269579,-500.0,0.00052328,31]
[312935633,1706470269589,-500.0,0.00052328,31]
[312935634,1706470269598,-866.15,0.00052328,31]
[312935635,1706470269609,-500.0,0.00052328,31]
[312935636,1706470269618,-1000.0,0.00052328,7]
[312935637,1706470269628,-1465.95,0.00052328,31]
[312935638,1706470269637,-500.0,0.00052328,31]
[312935639,1706470269647,-558.8,0.00052328,31]
[312935640,1706470269656,-702.82,0.00052328,31]
[312935641,1706470269666,-500.0,0.00052328,31]
[312935642,1706470269675,-528.63,0.00052328,31]
[312935643,1706470269684,-1050.63,0.00052328,31]
[312935644,1706470269693,-500.0,0.00052328,31]
[312935645,1706470269703,-2515.85,0.00052328,5]
[312935646,1706470269712,-538.33,0.00052328,31]
[312935647,1706470269722,-522.69230977,0.00052328,31]
[312935648,1706470269731,-500.0,0.00052328,31]
[312935649,1706470269740,-500.0,0.00052328,31]
[312935650,1706470269749,-518.95,0.00052328,31]
[312935651,1706470269758,-585.24,0.00052328,31]
[312935652,1706470269768,-540.09,0.00052328,31]
[312935653,1706470269778,-500.0,0.00052328,31]
[312935654,1706470269788,-500.0,0.00052328,31]
[312935655,1706470269797,-500.0,0.00052328,31]
[312935656,1706470269806,-500.0,0.00052328,31]
[312935657,1706470269816,-500.0,0.00052328,31]
[312935658,1706470269825,-604.09,0.00052328,31]
[312935659,1706470269834,-500.0,0.00052328,31]
[312935660,1706470269854,-667.98,0.00052328,2]
[312935661,1706470269865,-500.0,0.00052328,31]
[312935662,1706470269875,-500.0,0.00052328,31]
[312935663,1706470269884,-980.3,0.00052328,31]
[312935664,1706470269894,-1037.01,0.00052328,31]
[312935665,1706470269904,-935.8,0.00052328,31]
[312935666,1706470269913,-500.0,0.00052328,31]
[312935667,1706470269923,-1201.8,0.00052328,31]
[312935668,1706470269933,-500.0,0.00052328,31]
[312935669,1706470269942,-500.0,0.00052328,31]
[312935670,1706470269951,-649.1,0.00052328,31]
[312935671,1706470269961,-1061.64,0.00052328,31]
[312935672,1706470269970,-202.79471347,0.00052328,31]
[312935673,1706470269980,-500.0,0.00052328,31]
[312935674,1706470269990,-500.0,0.00052328,31]
[312935675,1706470270000,-500.0,0.00052328,31]
[312935676,1706470270011,-934.77,0.00052328,31]
[312935677,1706470270021,-687.49,0.00052328,31]
[312935678,1706470270031,-500.0,0.00052328,31]
[312935679,1706470270040,-710.56,0.00052328,31]
[312935680,1706470270050,-596.07,0.00052328,31]
[312935681,1706470270060,-500.0,0.00052328,31]
[312935682,1706470270070,-500.0,0.00052328,31]
[312935683,1706470270083,-500.0,0.00052328,31]
[312935684,1706470270092,-500.0,0.00052328,31]
[312935685,1706470270102,-735.56,0.00052328,31]
[312935686,1706470270112,-500.0,0.00052328,31]
[312935687,1706470270122,-500.0,0.00052328,31]
[312935688,1706470270132,-500.0,0.00052328,31]
[312935689,1706470270141,-500.0,0.00052328,31]
[312935690,1706470270151,-692.89,0.00052328,31]
[312935691,1706470270160,-500.0,0.00052328,31]
[312935692,1706470270169,-500.0,0.00052328,31]
[312935693,1706470270179,-500.0,0.00052328,31]
[312935694,1706470270189,-760.18,0.00052328,31]
[312935695,1706470270198,-500.0,0.00052328,31]
[312935696,1706470270207,-500.0,0.00052328,31]
[312935697,1706470270217,-500.0,0.00052328,31]
[312935698,1706470270226,-500.0,0.00052328,31]
[312935699,1706470270235,-537.29,0.00052328,31]
[312935700,1706470270245,-500.0,0.00052328,31]
[312935701,1706470270255,-500.0,0.00052328,31]
[312935702,1706470270264,-670.03,0.00052328,31]
[312935703,1706470270273,-949.98,0.00052328,31]
[312935704,1706470270282,-500.0,0.00052328,31]
[312935705,1706470270292,-500.0,0.00052328,31]
[312935706,1706470270301,-500.0,0.00052328,31]
[312935707,1706470270310,-500.0,0.00052328,31]
[312935708,1706470270319,-500.0,0.00052328,31]
[312935709,1706470270329,-1013.95,0.00052328,31]
[312935710,1706470270338,-500.0,0.00052328,31]
[312935711,1706470270347,-500.0,0.00052328,31]
[312935712,1706470270358,-500.0,0.00052328,31]
[312935713,1706470270367,-500.0,0.00052328,31]
[312935714,1706470270377,-635.57,0.00052328,31]
[312935715,1706470270386,-500.0,0.00052328,31]
[312935716,1706470270396,-500.0,0.00052328,31]
[312935717,1706470270405,-500.0,0.00052328,31]
[312935718,1706470270414,-600.05,0.00052328,31]
[312935719,1706470270424,-366.81837648,0.00052328,31]
[312935720,1706470270433,-500.0,0.00052328,31]
[312935721,1706470270442,-500.0,0.00052328,31]
[312935722,1706470270451,-500.0,0.00052328,31]
[312935723,1706470270461,-500.0,0.00052328,31]
[312935724,1706470270471,-500.0,0.00052328,31]
[312935725,1706470270480,-500.0,0.00052328,31]
[312935726,1706470270490,-500.0,0.00052328,31]
[312935727,1706470270500,-500.0,0.00052328,31]
[312935728,1706470270510,-576.89,0.00052328,31]
[312935729,1706470270520,-913.1,0.00052328,31]
[312935730,1706470270529,-500.0,0.00052328,31]
[312935731,1706470270538,-500.0,0.00052328,31]
[312935732,1706470270548,-859.35,0.00052328,31]
[312935733,1706470270557,-699.2,0.00052328,31]
[312935734,1706470270566,-500.0,0.00052328,31]
[312935735,1706470270576,-500.0,0.00052328,31]
[312935736,1706470270585,-500.0,0.00052328,31]
[312935737,1706470270594,-500.0,0.00052328,31]
[312935738,1706470270604,-500.0,0.00052328,31]
[312935739,1706470270614,-500.0,0.00052328,31]
[312935740,1706470270623,-500.0,0.00052328,31]
[312935741,1706470270632,-500.0,0.00052328,31]
[312935742,1706470270642,-500.0,0.00052328,31]
[312935743,1706470270651,-500.0,0.00052328,31]
[312935744,1706470270661,-500.0,0.00052328,31]
[312935745,1706470270670,-566.54,0.00052328,31]
[312935746,1706470270680,-500.0,0.00052328,31]
[312935747,1706470270689,-500.0,0.00052328,31]
[312935748,1706470270699,-500.0,0.00052328,31]
[312935749,1706470270708,-500.0,0.00052328,31]
[312935750,1706470270717,-500.0,0.00052328,31]
[312935751,1706470270727,-500.0,0.00052328,31]
[312935752,1706470270736,-500.0,0.00052328,31]
[312935753,1706470270746,-500.0,0.00052328,31]
[312935754,1706470270755,-663.0,0.00052328,31]
[312935755,1706470270764,-524.36,0.00052328,31]
[312935756,1706470270773,-500.0,0.00052328,31]
[312935757,1706470270783,-500.0,0.00052328,31]
[312935758,1706470270793,-500.0,0.00052328,31]
[312935759,1706470270802,-993.17,0.00052328,5]
[312935760,1706470270811,-500.0,0.00052328,31]
[312935761,1706470270821,-500.0,0.00052328,31]
[312935762,1706470270830,-1426.33,0.00052328,31]
[312935763,1706470270839,-1254.98,0.00052328,7]
[312935764,1706470270849,-500.0,0.00052328,31]
[312935765,1706470270859,-1000.0,0.00052328,31]
[312935766,1706470270868,-593.23,0.00052328,31]
[312935767,1706470270877,-500.0,0.00052328,31]
[312935768,1706470270886,-288.87694709,0.00052328,31]
[312935769,1706470270895,-500.0,0.00052328,31]
[312935770,1706470270905,-330.08661401,0.00052328,31]
[312935771,1706470270914,-787.1,0.00052328,31]
[312935772,1706470270923,-500.0,0.00052328,31]
[312935773,1706470270932,-500.0,0.00052328,31]
[312935774,1706470270942,-1003.11,0.00052328,31]
[312935775,1706470270952,-727.11,0.00052328,31]
[312935776,1706470270961,-500.0,0.00052328,31]
[312935777,1706470270970,-500.0,0.00052328,31]
[312935778,1706470270979,-500.0,0.00052328,31]
[312935779,1706470270989,-500.0,0.00052328,31]
[312935780,1706470270999,-500.0,0.00052328,14]
[312935781,1706470271012,-865.33,0.00052328,31]
[312935782,1706470271021,-500.0,0.00052328,31]
[312935783,1706470271030,-729.98,0.00052328,31]
[312935784,1706470271039,-500.0,0.00052328,31]
[312935785,1706470271049,-500.0,0.00052328,31]
[312935786,1706470271058,-500.0,0.00052328,31]
[312935787,1706470271067,-571.22,0.00052328,31]
[312935788,1706470271077,-500.0,0.00052328,31]
[312935789,1706470271086,-500.0,0.00052328,31]
[312935790,1706470271096,-500.0,0.00052328,31]
[312935791,1706470271105,-733.2,0.00052328,31]
[312935792,1706470271116,-829.02,0.00052328,31]
[312935793,1706470271125,-500.0,0.00052328,31]
[312935794,1706470271134,-500.0,0.00052328,31]
[312935795,1706470271143,-500.0,0.00052328,31]
[312935796,1706470271151,-500.0,0.00052328,31]
[312935797,1706470271160,-500.0,0.00052328,31]
[312935798,1706470271169,-500.0,0.00052328,31]
[312935799,1706470271178,-573.62,0.00052328,31]
[312935800,1706470271187,-510.50728439,0.00052328,31]
[312935801,1706470271196,-500.0,0.00052328,31]
[312935802,1706470271205,-500.0,0.00052328,31]
[312935803,1706470271214,-500.0,0.00052328,31]
[312935804,1706470271223,-834.44,0.00052328,31]
[312935805,1706470271232,-1018.07,0.00052328,31]
[312935806,1706470271241,-851.16,0.00052328,31]
[312935807,1706470271250,-875.07,0.00052328,31]
[312935808,1706470271259,-500.0,0.00052328,31]
[312935809,1706470271268,-1079.37,0.00052328,31]
[312935810,1706470271277,-500.0,0.00052328,31]
[312935811,1706470271286,-995.96,0.00052328,31]
[312935812,1706470271296,-500.0,0.00052328,31]
[312935813,1706470271305,-780.4,0.00052328,31]
[312935814,1706470271315,-500.0,0.00052328,31]
[312935815,1706470271324,-500.0,0.00052328,31]
[312935816,1706470271333,-500.0,0.00052328,31]
[312935817,1706470271343,-500.0,0.00052328,31]
[312935818,1706470271352,-500.0,0.00052328,31]
[312935819,1706470271362,-500.0,0.00052328,31]
[312935820,1706470271375,-709.25,0.00052328,31]
[312935821,1706470271386,-500.0,0.00052328,7]
[312935822,1706470271395,-500.0,0.00052328,31]
[312935823,1706470271405,-500.0,0.00052328,31]
[312935824,1706470271415,-500.0,0.00052328,31]
[312935825,1706470271424,-500.0,0.00052328,31]
[312935826,1706470271434,-500.0,0.00052328,31]
[312935827,1706470271444,-500.0,0.00052328,31]
[312935828,1706470271453,-500.0,0.00052328,31]
[312935829,1706470271463,-500.0,0.00052328,31]
[312935830,1706470271472,-500.0,0.00052328,31]
[312935831,1706470271481,-500.0,0.00052328,31]
[312935832,1706470271490,-500.0,0.00052328,31]
[312935833,1706470271499,-1254.44,0.00052328,31]
[312935834,1706470271509,-667.21,0.00052328,31]
[312935835,1706470271518,-500.0,0.00052328,31]
[312935836,1706470271527,-500.0,0.00052328,31]
[312935837,1706470271537,-500.0,0.00052328,31]
[312935838,1706470271546,-500.0,0.00052328,31]
[312935839,1706470271555,-500.0,0.00052328,31]
[312935840,1706470271565,-500.0,0.00052328,31]
[312935841,1706470271574,-500.0,0.00052328,31]
[312935842,1706470271583,-500.0,0.00052328,31]
[312935843,1706470271592,-500.0,0.00052328,31]
[312935844,1706470271601,-500.0,0.00052328,31]
[312935845,1706470271610,-500.0,0.00052328,31]
[312935846,1706470271620,-752.97,0.00052328,31]
[312935847,1706470271630,-500.0,0.00052328,31]
[312935848,1706470271639,-521.4,0.00052328,31]
[312935849,1706470271649,-500.0,0.00052328,31]
[312935850,1706470271659,-769.32,0.00052328,31]
[312935851,1706470271668,-500.0,0.00052328,31]
[312935852,1706470271678,-500.0,0.00052328,31]
[312935853,1706470271688,-780.39,0.00052328,31]
[312935854,1706470271699,-673.98,0.00052328,31]
[312935855,1706470271709,-500.0,0.00052328,31]
[312935856,1706470271718,-500.0,0.00052328,31]
[312935857,1706470271728,-500.0,0.00052328,31]
[312935858,1706470271738,-806.83,0.00052328,31]
[312935859,1706470271747,-355.6615917,0.00052328,2]
[312935860,1706470271757,-500.0,0.00052328,31]
[312935861,1706470271767,-655.92,0.00052328,31]
[312935862,1706470271776,-809.17,0.00052328,31]
[312935863,1706470271785,-500.0,0.00052328,31]
[312935864,1706470271795,-500.0,0.00052328,31]
[312935865,1706470271805,-500.0,0.00052328,31]
[312935866,1706470271814,-500.0,0.00052328,31]
[312935867,1706470271824,-922.9,0.00052328,31]
[312935868,1706470271833,-500.0,0.00052329,90]
[312935869,1706470271843,-150.0,0.00052447,30]
[312935870,1706470271852,-150.0,0.00052447,30]
[312935871,1706470271862,-854.0,0.00052457,30]
[312935872,1706470271872,-499.0,0.00052457,30]
[312935873,1706470271881,-54780.0,0.00052457,30]
[312935874,1706470271890,-153.60830703,0.00052487,30]
[312935875,1706470271899,-201.0,0.000525,39]
[312935876,1706470271909,-150.0,0.00052512,30]
[312935877,1706470271918,-58000.0,0.0005254,7]
[312935878,1706470271927,-500.0,0.00052543,120]
[312935879,1706470271937,-152.0,0.00052549,8]
[312935880,1706470271946,-58000.0,0.00052549,7]
[312935881,1706470271956,-58000.0,0.00052558,7]
[312935882,1706470271965,-58000.0,0.00052567,7]
[312935883,1706470271974,-58000.0,0.00052576,7]
[312935884,1706470271983,-58000.0,0.00052584,7]
[312935885,1706470271993,-58000.0,0.00052593,7]
[312935886,1706470272005,-209.32198294,0.00052602,30]
[312935887,1706470272014,-500.0,0.00052602,30]
[312935888,1706470272024,-58000.0,0.00052602,7]
[312935889,1706470272033,-35337.10314408,0.00052602,7]
[312935890,1706470272043,-500.0,0.00052602,31]
[312935891,1706470272052,-500.0,0.00052602,31]
[312935892,1706470272062,-500.0,0.00052602,31]
[312935893,1706470272070,-500.0,0.00052602,31]
[312935894,1706470272080,-500.0,0.00052602,31]
[312935895,1706470272089,-500.0,0.00052602,31]
[312935896,1706470272099,-500.0,0.00052602,31]
[312935897,1706470272109,-500.0,0.00052602,31]
[312935898,1706470272118,-563.76,0.00052602,31]
[312935899,1706470272127,-500.0,0.00052602,31]
[312935900,1706470272136,-500.0,0.00052602,31]
[312935901,1706470272146,-501.78931316,0.00052602,7]
[312935902,1706470272154,-500.0,0.00052602,31]
[312935903,1706470272164,-334.47284445,0.00052602,31]
[312935904,1706470272173,-1000.0,0.00052602,31]
[312935905,1706470272183,-500.0,0.00052602,31]
[312935906,1706470272192,-500.0,0.00052602,31]
[312935907,1706470272201,-500.0,0.00052602,31]
[312935908,1706470272210,-500.0,0.00052602,31]
[312935909,1706470272221,-500.0,0.00052602,31]
[312935910,1706470272231,-500.0,0.00052602,14]
[312935911,1706470272240,-859.61,0.00052602,2]
[312935912,1706470272250,-549.60798899,0.00052602,31]
[312935913,1706470272259,-500.0,0.00052602,31]
[312935914,1706470272268,-1182.48,0.00052602,31]
[312935915,1706470272277,-500.0,0.00052602,31]
[312935916,1706470272287,-500.0,0.00052602,31]
[312935917,1706470272297,-500.0,0.00052602,31]
[312935918,1706470272306,-500.0,0.00052602,31]
[312935919,1706470272315,-1605.92,0.00052602,31]
[312935920,1706470272324,-614.74166904,0.00052602,31]
[312935921,1706470272334,-500.0,0.00052602,7]
[312935922,1706470272343,-500.0,0.00052602,2]
[312935923,1706470272353,-717.72,0.00052602,31]
[312935924,1706470272362,-500.0,0.00052602,20]
[312935925,1706470272371,-1132.61,0.00052602,31]
[312935926,1706470272381,-500.0,0.00052602,15]
[312935927,1706470272390,-500.0,0.00052602,31]
[312935928,1706470272400,-1180.53,0.00052602,2]
[312935929,1706470272410,-574.75,0.00052602,31]
[312935930,1706470272420,-500.0,0.00052602,31]
[312935931,1706470272430,-500.0,0.00052602,31]
[312935932,1706470272440,-500.0,0.00052602,31]
[312935933,1706470272450,-500.0,0.00052602,31]
[312935934,1706470272459,-545.74874892,0.00052602,31]
[312935935,1706470272469,-500.0,0.00052602,31]
[312935936,1706470272480,-500.0,0.00052602,31]
[312935937,1706470272489,-500.0,0.00052602,31]
[312935938,1706470272498,-500.0,0.00052602,2]
[312935939,1706470272509,-500.0,0.00052602,31]
[312935940,1706470272518,-500.0,0.00052602,2]
[312935941,1706470272527,-500.0,0.00052602,31]
[312935942,1706470272537,-1240.16,0.00052602,2]
[312935943,1706470272546,-674.38,0.00052602,31]
[312935944,1706470272556,-500.0,0.00052602,31]
[312935945,1706470272565,-734.77,0.00052602,2]
[312935946,1706470272575,-500.0,0.00052602,31]
[312935947,1706470272585,-500.0,0.00052602,31]
[312935948,1706470272595,-500.0,0.00052602,31]
[312935949,1706470272605,-500.0,0.00052602,31]
[312935950,1706470272615,-500.0,0.00052602,31]
[312935951,1706470272624,-500.0,0.00052602,31]
[312935952,1706470272633,-500.0,0.00052602,31]
[312935953,1706470272642,-500.0,0.00052602,31]
[312935954,1706470272652,-500.0,0.00052602,31]
[312935955,1706470272661,-500.0,0.00052602,31]
[312935956,1706470272671,-500.0,0.00052602,31]
[312935957,1706470272680,-500.0,0.00052602,31]
[312935958,1706470272690,-500.0,0.00052602,31]
[312935959,1706470272699,-500.0,0.00052602,31]
[312935960,1706470272709,-500.0,0.00052602,31]
[312935961,1706470272718,-1012.49,0.00052602,7]
[312935962,1706470272903,-500.0,0.00052602,31]
[312935963,1706470272914,-600.0,0.00052602,120]
[312935964,1706470272924,-500.0,0.00052602,31]
[312935965,1706470272934,-500.0,0.00052602,31]